[Event "Titled Tuesday Blitz June 20 Late 2023"]
[White "Rangel, Daniel"]
[Black "Katz, Alexander"]
[WhiteFideId "2124475"]
[BlackFideId "2039796"]
[WhiteElo "2231"]
[BlackElo "2389"]
[Result "1/2-1/2"]
[Round "4"]
[TimeControl "180+2"]
[Date "2023.06.20"]
[WhiteClock "0:00:19"]
[BlackClock "0:00:12"]
[Board "69"]

1. c4 {[%clk 0:03:00]}  e5 {[%clk 0:02:58]} 2. g3 {[%clk 0:03:01]}  Nc6 {[%clk 0:02:54]} 3. Bg2 {[%clk 0:02:57]}  g6 {[%clk 0:02:55]} 4. Nc3 {[%clk 0:02:58]}  Bg7 {[%clk 0:02:55]} 5. e3 {[%clk 0:02:59]}  d6 {[%clk 0:02:54]} 6. Nge2 {[%clk 0:02:59]}  Be6 {[%clk 0:02:54]} 7. Nd5 {[%clk 0:02:57]}  Nge7 {[%clk 0:02:41]} 8. Rb1 {[%clk 0:02:53]}  a5 {[%clk 0:02:33]} 9. a3 {[%clk 0:02:53]}  O-O {[%clk 0:02:32]} 10. h4 {[%clk 0:02:47]}  h5 {[%clk 0:02:10]} 11. Nec3 {[%clk 0:02:44]}  Qd7 {[%clk 0:02:07]} 12. d3 {[%clk 0:02:43]}  f5 {[%clk 0:02:01]} 13. O-O {[%clk 0:02:37]}  Rf7 {[%clk 0:01:58]} 14. b4 {[%clk 0:02:32]}  axb4 {[%clk 0:01:58]} 15. axb4 {[%clk 0:02:33]}  Raf8 {[%clk 0:01:58]} 16. b5 {[%clk 0:02:30]}  Nd8 {[%clk 0:01:58]} 17. b6 {[%clk 0:02:28]}  c6 {[%clk 0:01:57]} 18. Nc7 {[%clk 0:02:25]}  f4 {[%clk 0:01:56]} 19. Nxe6 {[%clk 0:02:24]}  Nxe6 {[%clk 0:01:55]} 20. Ne4 {[%clk 0:02:11]}  d5 {[%clk 0:01:52]} 21. cxd5 {[%clk 0:02:11]}  cxd5 {[%clk 0:01:51]} 22. Nc3 {[%clk 0:02:02]}  fxg3 {[%clk 0:01:09]} 23. fxg3 {[%clk 0:01:54]}  Rxf1+ {[%clk 0:01:09]} 24. Bxf1 {[%clk 0:01:55]}  d4 {[%clk 0:01:10]} 25. Ne4 {[%clk 0:01:51]}  Nf5 {[%clk 0:01:10]} 26. Bh3 {[%clk 0:01:37]}  dxe3 {[%clk 0:01:08]} 27. Qb3 {[%clk 0:01:35]}  Kh8 {[%clk 0:01:06]} 28. Bxe3 {[%clk 0:01:34]}  Nxe3 {[%clk 0:00:59]} 29. Bxe6 {[%clk 0:01:28]}  Qd4 {[%clk 0:00:59]} 30. Qc3 {[%clk 0:01:15]}  Qxc3 {[%clk 0:00:45]} 31. Nxc3 {[%clk 0:01:16]}  e4 {[%clk 0:00:45]} 32. Nxe4 {[%clk 0:01:10]}  Bd4 {[%clk 0:00:46]} 33. Kh2 {[%clk 0:01:07]}  Kg7 {[%clk 0:00:38]} 34. Rc1 {[%clk 0:01:06]}  Bxb6 {[%clk 0:00:36]} 35. Rb1 {[%clk 0:01:07]}  Bd4 {[%clk 0:00:30]} 36. Rxb7+ {[%clk 0:01:06]}  Kh6 {[%clk 0:00:26]} 37. Ng5 {[%clk 0:00:56]}  Rf2+ {[%clk 0:00:24]} 38. Kh3 {[%clk 0:00:55]}  Bg7 {[%clk 0:00:24]} 39. Nf7+ {[%clk 0:00:47]}  Kh7 {[%clk 0:00:24]} 40. Ng5+ {[%clk 0:00:47]}  Kh6 {[%clk 0:00:24]} 41. Bg8 {[%clk 0:00:44]}  Ng4 {[%clk 0:00:15]} 42. Nf7+ {[%clk 0:00:42]}  Rxf7 {[%clk 0:00:16]} 43. Rxf7 {[%clk 0:00:43]}  Ne5 {[%clk 0:00:16]} 44. Rb7 {[%clk 0:00:36]}  Nxd3 {[%clk 0:00:16]} 45. Bd5 {[%clk 0:00:34]}  Nf2+ {[%clk 0:00:15]} 46. Kg2 {[%clk 0:00:31]}  Ng4 {[%clk 0:00:16]} 47. Be4 {[%clk 0:00:31]}  Bf6 {[%clk 0:00:15]} 48. Rb6 {[%clk 0:00:29]}  Kg7 {[%clk 0:00:16]} 49. Rb7+ {[%clk 0:00:29]}  Kh6 {[%clk 0:00:16]} 50. Rf7 {[%clk 0:00:30]}  Be5 {[%clk 0:00:15]} 51. Bf3 {[%clk 0:00:27]}  Ne3+ {[%clk 0:00:15]} 52. Kh3 {[%clk 0:00:26]}  Nf5 {[%clk 0:00:16]} 53. Ra7 {[%clk 0:00:24]}  Nxg3 {[%clk 0:00:15]} 54. Ra6 {[%clk 0:00:20]}  Kg7 {[%clk 0:00:10]} 55. Ra7+ {[%clk 0:00:18]}  Kf6 {[%clk 0:00:10]} 56. Ra6+ {[%clk 0:00:18]}  Kg7 {[%clk 0:00:11]} 57. Ra7+ {[%clk 0:00:19]}  Kf6 {[%clk 0:00:12]} 58. Ra6+ {[%clk 0:00:19]}  Kg7 {[%clk 0:00:12]} 1/2-1/2


[Site "https://www.chess.com"]

[Event "Titled Tuesday Blitz June 20 Late 2023"]
[White "Fiedorek, Michal"]
[Black "Martinez Ramirez, Lennis"]
[WhiteFideId "1199528"]
[BlackFideId "3509079"]
[WhiteElo "2135"]
[BlackElo "2410"]
[Result "0-1"]
[Round "4"]
[TimeControl "180+2"]
[Date "2023.06.20"]
[WhiteClock "0:00:03"]
[BlackClock "0:00:13"]
[Board "70"]

1. e4 {[%clk 0:03:00]}  c6 {[%clk 0:03:00]} 2. d4 {[%clk 0:03:00]}  d5 {[%clk 0:03:01]} 3. exd5 {[%clk 0:03:01]}  cxd5 {[%clk 0:03:01]} 4. Nf3 {[%clk 0:03:02]}  Nc6 {[%clk 0:03:01]} 5. Ne5 {[%clk 0:03:00]}  Bd7 {[%clk 0:02:47]} 6. Nxd7 {[%clk 0:02:58]}  Qxd7 {[%clk 0:02:47]} 7. c3 {[%clk 0:02:59]}  Nf6 {[%clk 0:02:45]} 8. Bd3 {[%clk 0:02:59]}  e6 {[%clk 0:02:45]} 9. O-O {[%clk 0:03:00]}  Bd6 {[%clk 0:02:46]} 10. Nd2 {[%clk 0:02:59]}  Qc7 {[%clk 0:02:45]} 11. Nf3 {[%clk 0:02:59]}  O-O-O {[%clk 0:02:44]} 12. b4 {[%clk 0:02:56]}  Kb8 {[%clk 0:02:44]} 13. a4 {[%clk 0:02:56]}  h6 {[%clk 0:02:45]} 14. a5 {[%clk 0:02:56]}  g5 {[%clk 0:02:44]} 15. b5 {[%clk 0:02:56]}  Nxa5 {[%clk 0:02:43]} 16. Ne5 {[%clk 0:02:51]}  Bxe5 {[%clk 0:02:38]} 17. dxe5 {[%clk 0:02:50]}  Ne4 {[%clk 0:02:38]} 18. Qa4 {[%clk 0:02:25]}  Nc5 {[%clk 0:02:31]} 19. Qc2 {[%clk 0:02:20]}  Nxd3 {[%clk 0:01:46]} 20. Qxd3 {[%clk 0:02:20]}  Nc4 {[%clk 0:01:42]} 21. Be3 {[%clk 0:02:10]}  b6 {[%clk 0:01:42]} 22. Ra6 {[%clk 0:02:01]}  Nxe5 {[%clk 0:01:24]} 23. Qd4 {[%clk 0:01:59]}  Nc4 {[%clk 0:01:16]} 24. Rfa1 {[%clk 0:01:43]}  e5 {[%clk 0:01:15]} 25. Qd3 {[%clk 0:01:39]}  Rd7 {[%clk 0:01:11]} 26. Qf5 {[%clk 0:01:28]}  Rhd8 {[%clk 0:01:10]} 27. h4 {[%clk 0:01:26]}  Nxe3 {[%clk 0:01:05]} 28. fxe3 {[%clk 0:01:26]}  Qxc3 {[%clk 0:01:05]} 29. Qf6 {[%clk 0:01:17]}  Qxe3+ {[%clk 0:01:05]} 30. Kh1 {[%clk 0:01:16]}  Rc8 {[%clk 0:00:51]} 31. Qxh6 {[%clk 0:00:23]}  Rc1+ {[%clk 0:00:48]} 32. Rxc1 {[%clk 0:00:22]}  Qxc1+ {[%clk 0:00:49]} 33. Kh2 {[%clk 0:00:23]}  Qf4+ {[%clk 0:00:49]} 34. Kg1 {[%clk 0:00:20]}  Rc7 {[%clk 0:00:35]} 35. Qd6 {[%clk 0:00:20]}  Qd4+ {[%clk 0:00:28]} 36. Kf1 {[%clk 0:00:15]}  gxh4 {[%clk 0:00:27]} 37. Qd8+ {[%clk 0:00:12]}  Rc8 {[%clk 0:00:24]} 38. Qd6+ {[%clk 0:00:11]}  Ka8 {[%clk 0:00:20]} 39. Qa3 {[%clk 0:00:11]}  Qc4+ {[%clk 0:00:14]} 40. Kf2 {[%clk 0:00:09]}  Qc2+ {[%clk 0:00:14]} 41. Kf3 {[%clk 0:00:03]}  Rc3+ {[%clk 0:00:13]} 0-1


[Site "https://www.chess.com"]

[Event "Titled Tuesday Blitz June 20 Late 2023"]
[White "Quiroga Jaquez, Angel Ivan"]
[Black "Korchmar, Vasiliy"]
[WhiteFideId "5117801"]
[BlackFideId "24131750"]
[WhiteElo "2011"]
[BlackElo "2370"]
[Result "0-1"]
[Round "4"]
[TimeControl "180+2"]
[Date "2023.06.20"]
[WhiteClock "0:00:14"]
[BlackClock "0:00:08"]
[Board "71"]

1. d4 {[%clk 0:03:00]}  d5 {[%clk 0:02:59]} 2. c4 {[%clk 0:03:01]}  c6 {[%clk 0:03:00]} 3. cxd5 {[%clk 0:03:00]}  cxd5 {[%clk 0:03:00]} 4. Nf3 {[%clk 0:03:01]}  Nf6 {[%clk 0:02:59]} 5. Bf4 {[%clk 0:03:01]}  Nc6 {[%clk 0:03:00]} 6. Nc3 {[%clk 0:03:02]}  Nh5 {[%clk 0:02:56]} 7. Be5 {[%clk 0:02:59]}  f6 {[%clk 0:02:48]} 8. Bg3 {[%clk 0:02:52]}  e5 {[%clk 0:02:22]} 9. e3 {[%clk 0:02:50]}  e4 {[%clk 0:02:10]} 10. Nd2 {[%clk 0:02:50]}  Nxg3 {[%clk 0:02:10]} 11. hxg3 {[%clk 0:02:50]}  Be6 {[%clk 0:02:07]} 12. Qb3 {[%clk 0:02:45]}  Qd7 {[%clk 0:02:05]} 13. Rc1 {[%clk 0:02:41]}  Rc8 {[%clk 0:01:59]} 14. a3 {[%clk 0:02:41]}  Bd6 {[%clk 0:01:59]} 15. Ndxe4 {[%clk 0:01:52]}  dxe4 {[%clk 0:01:33]} 16. d5 {[%clk 0:01:53]}  Bf7 {[%clk 0:01:05]} 17. dxc6 {[%clk 0:01:52]}  Qxc6 {[%clk 0:00:56]} 18. Qd1 {[%clk 0:01:36]}  O-O {[%clk 0:00:54]} 19. Bb5 {[%clk 0:01:23]}  Qb6 {[%clk 0:00:54]} 20. Qg4 {[%clk 0:01:06]}  Rxc3 {[%clk 0:00:40]} 21. Rxc3 {[%clk 0:01:01]}  Qxb5 {[%clk 0:00:40]} 22. Qxe4 {[%clk 0:01:01]}  g6 {[%clk 0:00:29]} 23. Qh4 {[%clk 0:01:00]}  h5 {[%clk 0:00:24]} 24. g4 {[%clk 0:00:52]}  g5 {[%clk 0:00:21]} 25. Qh3 {[%clk 0:00:50]}  h4 {[%clk 0:00:21]} 26. Qf3 {[%clk 0:00:40]}  Qxb2 {[%clk 0:00:12]} 27. e4 {[%clk 0:00:40]}  Qa1+ {[%clk 0:00:08]} 28. Ke2 {[%clk 0:00:37]}  Qxh1 {[%clk 0:00:07]} 29. Qxf6 {[%clk 0:00:36]}  Bf4 {[%clk 0:00:08]} 30. Qd4 {[%clk 0:00:27]}  Qxg2 {[%clk 0:00:07]} 31. Rc5 {[%clk 0:00:21]}  Qxg4+ {[%clk 0:00:07]} 32. Kf1 {[%clk 0:00:19]}  Qh3+ {[%clk 0:00:07]} 33. Ke2 {[%clk 0:00:19]}  Qg4+ {[%clk 0:00:07]} 34. Kf1 {[%clk 0:00:19]}  h3 {[%clk 0:00:08]} 35. e5 {[%clk 0:00:15]}  h2 {[%clk 0:00:07]} 36. Qe4 {[%clk 0:00:16]}  Qg1+ {[%clk 0:00:07]} 37. Ke2 {[%clk 0:00:14]}  h1=Q {[%clk 0:00:08]} 0-1


[Site "https://www.chess.com"]

[Event "Titled Tuesday Blitz June 20 Late 2023"]
[White "Olsson, William"]
[Black "Arabidze, Meri"]
[WhiteFideId "1741721"]
[BlackFideId "13604040"]
[WhiteElo "2197"]
[BlackElo "2405"]
[Result "1-0"]
[Round "4"]
[TimeControl "180+2"]
[Date "2023.06.20"]
[WhiteClock "0:00:18"]
[BlackClock "0:00:00"]
[Board "74"]

1. c4 {[%clk 0:03:00]}  e5 {[%clk 0:02:59]} 2. g3 {[%clk 0:03:01]}  Nc6 {[%clk 0:02:58]} 3. Bg2 {[%clk 0:03:01]}  g6 {[%clk 0:02:59]} 4. Nc3 {[%clk 0:03:02]}  Bg7 {[%clk 0:02:59]} 5. Rb1 {[%clk 0:03:00]}  d6 {[%clk 0:02:55]} 6. b4 {[%clk 0:03:00]}  Nf6 {[%clk 0:02:55]} 7. b5 {[%clk 0:02:58]}  Ne7 {[%clk 0:02:55]} 8. Nf3 {[%clk 0:02:57]}  O-O {[%clk 0:02:54]} 9. O-O {[%clk 0:02:56]}  a6 {[%clk 0:02:55]} 10. b6 {[%clk 0:02:46]}  cxb6 {[%clk 0:02:47]} 11. d3 {[%clk 0:02:38]}  Bd7 {[%clk 0:02:25]} 12. Be3 {[%clk 0:02:34]}  Bc6 {[%clk 0:02:22]} 13. Bxb6 {[%clk 0:02:33]}  Qd7 {[%clk 0:02:21]} 14. a4 {[%clk 0:02:30]}  Nf5 {[%clk 0:02:03]} 15. e4 {[%clk 0:02:22]}  Ne7 {[%clk 0:01:59]} 16. a5 {[%clk 0:02:22]}  Nh5 {[%clk 0:01:40]} 17. Nd5 {[%clk 0:02:13]}  f5 {[%clk 0:01:37]} 18. Ng5 {[%clk 0:02:08]}  h6 {[%clk 0:01:26]} 19. Nf3 {[%clk 0:01:59]}  f4 {[%clk 0:01:12]} 20. d4 {[%clk 0:01:44]}  Rf7 {[%clk 0:00:53]} 21. Nh4 {[%clk 0:01:35]}  Kh7 {[%clk 0:00:43]} 22. Rb4 {[%clk 0:00:48]}  Raf8 {[%clk 0:00:35]} 23. Nxe7 {[%clk 0:00:38]}  Qxe7 {[%clk 0:00:36]} 24. Qg4 {[%clk 0:00:34]}  Qg5 {[%clk 0:00:32]} 25. Qxg5 {[%clk 0:00:30]}  hxg5 {[%clk 0:00:33]} 26. Nf3 {[%clk 0:00:29]}  Bh6 {[%clk 0:00:26]} 27. g4 {[%clk 0:00:29]}  Nf6 {[%clk 0:00:25]} 28. d5 {[%clk 0:00:28]}  Be8 {[%clk 0:00:19]} 29. c5 {[%clk 0:00:28]}  Bb5 {[%clk 0:00:12]} 30. Rc1 {[%clk 0:00:26]}  Nxg4 {[%clk 0:00:12]} 31. cxd6 {[%clk 0:00:23]}  Rd7 {[%clk 0:00:12]} 32. Rc7 {[%clk 0:00:20]}  Rff7 {[%clk 0:00:11]} 33. h3 {[%clk 0:00:20]}  Nf6 {[%clk 0:00:04]} 34. Nxe5 {[%clk 0:00:19]}  Rxc7 {[%clk 0:00:03]} 35. dxc7 {[%clk 0:00:20]}  Rf8 {[%clk 0:00:03]} 36. d6 {[%clk 0:00:19]}  Nd7 {[%clk 0:00:00]} 37. Rxb5 {[%clk 0:00:18]} 1-0


[Site "https://www.chess.com"]

[Event "Titled Tuesday Blitz June 20 Late 2023"]
[White "Martic, Ivan"]
[Black "Bogaudinov, Rushan"]
[WhiteFideId "929301"]
[BlackFideId "4129288"]
[WhiteElo "2346"]
[BlackElo "1967"]
[Result "1-0"]
[Round "4"]
[TimeControl "180+2"]
[Date "2023.06.20"]
[WhiteClock "0:00:06"]
[BlackClock "0:00:00"]
[Board "75"]

1. d4 {[%clk 0:02:57]}  d5 {[%clk 0:02:59]} 2. c4 {[%clk 0:02:56]}  e6 {[%clk 0:02:59]} 3. Nc3 {[%clk 0:02:55]}  Nf6 {[%clk 0:02:59]} 4. cxd5 {[%clk 0:02:55]}  exd5 {[%clk 0:02:57]} 5. Bg5 {[%clk 0:02:55]}  c6 {[%clk 0:02:56]} 6. e3 {[%clk 0:02:54]}  Nbd7 {[%clk 0:02:56]} 7. Bd3 {[%clk 0:02:53]}  Be7 {[%clk 0:02:56]} 8. Qc2 {[%clk 0:02:53]}  h6 {[%clk 0:02:55]} 9. Bh4 {[%clk 0:02:51]}  O-O {[%clk 0:02:53]} 10. Nf3 {[%clk 0:02:51]}  Re8 {[%clk 0:02:53]} 11. O-O {[%clk 0:02:49]}  Ne4 {[%clk 0:02:42]} 12. Bxe7 {[%clk 0:02:46]}  Qxe7 {[%clk 0:02:43]} 13. Rab1 {[%clk 0:02:41]}  Ng5 {[%clk 0:02:31]} 14. Nd2 {[%clk 0:02:34]}  h5 {[%clk 0:02:31]} 15. Rbe1 {[%clk 0:02:27]}  Nf6 {[%clk 0:02:28]} 16. f4 {[%clk 0:02:26]}  Ne6 {[%clk 0:02:22]} 17. Nf3 {[%clk 0:02:25]}  c5 {[%clk 0:02:19]} 18. f5 {[%clk 0:02:13]}  Nf8 {[%clk 0:02:05]} 19. Ne5 {[%clk 0:02:05]}  N8d7 {[%clk 0:01:59]} 20. e4 {[%clk 0:01:50]}  cxd4 {[%clk 0:01:55]} 21. Nxd7 {[%clk 0:01:44]}  Bxd7 {[%clk 0:01:49]} 22. Nxd5 {[%clk 0:01:34]}  Nxd5 {[%clk 0:01:43]} 23. exd5 {[%clk 0:01:35]}  Qb4 {[%clk 0:01:19]} 24. Rxe8+ {[%clk 0:01:30]}  Rxe8 {[%clk 0:01:18]} 25. f6 {[%clk 0:01:30]}  gxf6 {[%clk 0:01:13]} 26. Qf2 {[%clk 0:01:22]}  Qd6 {[%clk 0:00:53]} 27. Qxd4 {[%clk 0:01:20]}  Qe5 {[%clk 0:00:50]} 28. Qxe5 {[%clk 0:01:00]}  fxe5 {[%clk 0:00:50]} 29. Rc1 {[%clk 0:00:56]}  e4 {[%clk 0:00:49]} 30. Be2 {[%clk 0:00:56]}  Bg4 {[%clk 0:00:41]} 31. Kf2 {[%clk 0:00:37]}  Rd8 {[%clk 0:00:39]} 32. Bc4 {[%clk 0:00:33]}  Kf8 {[%clk 0:00:34]} 33. Ke3 {[%clk 0:00:33]}  Bf5 {[%clk 0:00:33]} 34. Kd4 {[%clk 0:00:30]}  Ke7 {[%clk 0:00:31]} 35. Bb3 {[%clk 0:00:25]}  Kd6 {[%clk 0:00:28]} 36. Rf1 {[%clk 0:00:23]}  Bg6 {[%clk 0:00:28]} 37. Rf6+ {[%clk 0:00:23]}  Ke7 {[%clk 0:00:26]} 38. Ke5 {[%clk 0:00:23]}  Kf8 {[%clk 0:00:19]} 39. d6 {[%clk 0:00:21]}  e3 {[%clk 0:00:19]} 40. Rf1 {[%clk 0:00:17]}  e2 {[%clk 0:00:18]} 41. Re1 {[%clk 0:00:18]}  Bd3 {[%clk 0:00:18]} 42. Kd4 {[%clk 0:00:13]}  Rxd6+ {[%clk 0:00:17]} 43. Ke3 {[%clk 0:00:13]}  Ba6 {[%clk 0:00:17]} 44. a4 {[%clk 0:00:13]}  Kg7 {[%clk 0:00:17]} 45. Bc2 {[%clk 0:00:12]}  Re6+ {[%clk 0:00:16]} 46. Kd2 {[%clk 0:00:12]}  Rd6+ {[%clk 0:00:16]} 47. Ke3 {[%clk 0:00:12]}  Re6+ {[%clk 0:00:16]} 48. Kd2 {[%clk 0:00:12]}  Rf6 {[%clk 0:00:16]} 49. b4 {[%clk 0:00:12]}  Bc4 {[%clk 0:00:16]} 50. Kc3 {[%clk 0:00:12]}  Rf1 {[%clk 0:00:14]} 51. Kd2 {[%clk 0:00:11]}  Rxe1 {[%clk 0:00:14]} 52. Kxe1 {[%clk 0:00:11]}  Kf6 {[%clk 0:00:14]} 53. Be4 {[%clk 0:00:11]}  b6 {[%clk 0:00:14]} 54. h4 {[%clk 0:00:11]}  Ke5 {[%clk 0:00:13]} 55. Bf3 {[%clk 0:00:11]}  Kf4 {[%clk 0:00:12]} 56. Bxh5 {[%clk 0:00:10]}  f6 {[%clk 0:00:12]} 57. Bxe2 {[%clk 0:00:10]}  Bd5 {[%clk 0:00:11]} 58. Kf2 {[%clk 0:00:10]}  Bc6 {[%clk 0:00:10]} 59. a5 {[%clk 0:00:09]}  bxa5 {[%clk 0:00:09]} 60. bxa5 {[%clk 0:00:10]}  Be8 {[%clk 0:00:07]} 61. g3+ {[%clk 0:00:10]}  Kf5 {[%clk 0:00:07]} 62. Ke3 {[%clk 0:00:11]}  Ke5 {[%clk 0:00:07]} 63. Bd3 {[%clk 0:00:10]}  Bh5 {[%clk 0:00:05]} 64. Be4 {[%clk 0:00:09]}  Bg4 {[%clk 0:00:05]} 65. Bf3 {[%clk 0:00:09]}  Bf5 {[%clk 0:00:05]} 66. g4 {[%clk 0:00:10]}  Bg6 {[%clk 0:00:04]} 67. h5 {[%clk 0:00:09]}  Bh7 {[%clk 0:00:04]} 68. Be2 {[%clk 0:00:09]}  f5 {[%clk 0:00:03]} 69. g5 {[%clk 0:00:07]}  f4+ {[%clk 0:00:03]} 70. Kf2 {[%clk 0:00:08]}  Be4 {[%clk 0:00:00]} 71. Bg4 {[%clk 0:00:06]} 1-0


[Site "https://www.chess.com"]

[Event "Titled Tuesday Blitz June 20 Late 2023"]
[White "Mikhalsky, Vladimir"]
[Black "Ashraf, Artin"]
[WhiteFideId "14144352"]
[BlackFideId "22514805"]
[WhiteElo "2236"]
[BlackElo "2224"]
[Result "0-1"]
[Round "4"]
[TimeControl "180+2"]
[Date "2023.06.20"]
[WhiteClock "0:00:00"]
[BlackClock "0:00:07"]
[Board "77"]

1. d4 {[%clk 0:02:57]}  d5 {[%clk 0:02:56]} 2. g3 {[%clk 0:02:54]}  c5 {[%clk 0:02:46]} 3. Bg2 {[%clk 0:02:51]}  cxd4 {[%clk 0:02:42]} 4. Nf3 {[%clk 0:02:51]}  Nf6 {[%clk 0:02:23]} 5. O-O {[%clk 0:02:48]}  g6 {[%clk 0:02:23]} 6. Nxd4 {[%clk 0:02:46]}  Bg7 {[%clk 0:02:21]} 7. c4 {[%clk 0:02:44]}  O-O {[%clk 0:02:18]} 8. cxd5 {[%clk 0:02:32]}  Nxd5 {[%clk 0:02:16]} 9. Nb5 {[%clk 0:02:28]}  a6 {[%clk 0:02:14]} 10. Qxd5 {[%clk 0:02:17]}  Qxd5 {[%clk 0:02:11]} 11. Bxd5 {[%clk 0:02:16]}  axb5 {[%clk 0:02:12]} 12. Nc3 {[%clk 0:02:13]}  b4 {[%clk 0:02:01]} 13. Ne4 {[%clk 0:01:41]}  Rd8 {[%clk 0:01:51]} 14. Bb3 {[%clk 0:01:35]}  Nc6 {[%clk 0:01:46]} 15. Ng5 {[%clk 0:01:31]}  e6 {[%clk 0:01:39]} 16. Rd1 {[%clk 0:01:10]}  Rxd1+ {[%clk 0:01:10]} 17. Bxd1 {[%clk 0:01:09]}  b6 {[%clk 0:01:10]} 18. e3 {[%clk 0:00:53]}  Bb7 {[%clk 0:00:55]} 19. a4 {[%clk 0:00:52]}  Ne5 {[%clk 0:00:52]} 20. f4 {[%clk 0:00:31]}  Nd3 {[%clk 0:00:49]} 21. Rb1 {[%clk 0:00:22]}  h6 {[%clk 0:00:27]} 22. Bf3 {[%clk 0:00:20]}  Bxf3 {[%clk 0:00:23]} 23. Nxf3 {[%clk 0:00:20]}  Rc8 {[%clk 0:00:24]} 24. Bd2 {[%clk 0:00:19]}  b3 {[%clk 0:00:22]} 25. Bc3 {[%clk 0:00:17]}  Bxc3 {[%clk 0:00:20]} 26. bxc3 {[%clk 0:00:17]}  Rxc3 {[%clk 0:00:21]} 27. Ne5 {[%clk 0:00:15]}  Nxe5 {[%clk 0:00:11]} 28. fxe5 {[%clk 0:00:15]}  Rxe3 {[%clk 0:00:12]} 29. Kf2 {[%clk 0:00:16]}  Rxe5 {[%clk 0:00:12]} 30. Rxb3 {[%clk 0:00:15]}  Re4 {[%clk 0:00:12]} 31. Rxb6 {[%clk 0:00:15]}  Rxa4 {[%clk 0:00:12]} 32. h4 {[%clk 0:00:14]}  Ra2+ {[%clk 0:00:11]} 33. Kf3 {[%clk 0:00:14]}  Kg7 {[%clk 0:00:11]} 34. Kf4 {[%clk 0:00:14]}  Rf2+ {[%clk 0:00:09]} 35. Ke3 {[%clk 0:00:13]}  Rf6 {[%clk 0:00:07]} 36. Rb5 {[%clk 0:00:13]}  Rf5 {[%clk 0:00:06]} 37. Rb7 {[%clk 0:00:12]}  g5 {[%clk 0:00:06]} 38. h5 {[%clk 0:00:11]}  g4 {[%clk 0:00:06]} 39. Rb4 {[%clk 0:00:09]}  Rf3+ {[%clk 0:00:05]} 40. Ke2 {[%clk 0:00:07]}  Rxg3 {[%clk 0:00:04]} 41. Kf2 {[%clk 0:00:07]}  Rf3+ {[%clk 0:00:04]} 42. Kg2 {[%clk 0:00:08]}  f5 {[%clk 0:00:04]} 43. Rb6 {[%clk 0:00:07]}  Kf6 {[%clk 0:00:04]} 44. Rb8 {[%clk 0:00:06]}  Rh3 {[%clk 0:00:04]} 45. Rf8+ {[%clk 0:00:05]}  Ke5 {[%clk 0:00:04]} 46. Ra8 {[%clk 0:00:04]}  Rxh5 {[%clk 0:00:05]} 47. Ra5+ {[%clk 0:00:04]}  Kf6 {[%clk 0:00:06]} 48. Ra4 {[%clk 0:00:03]}  Rh3 {[%clk 0:00:06]} 49. Ra8 {[%clk 0:00:03]}  h5 {[%clk 0:00:06]} 50. Rf8+ {[%clk 0:00:03]}  Ke5 {[%clk 0:00:06]} 51. Rh8 {[%clk 0:00:02]}  Kf4 {[%clk 0:00:06]} 52. Re8 {[%clk 0:00:02]}  e5 {[%clk 0:00:06]} 53. Ra8 {[%clk 0:00:02]}  h4 {[%clk 0:00:06]} 54. Ra4+ {[%clk 0:00:02]}  e4 {[%clk 0:00:07]} 55. Kf2 {[%clk 0:00:02]}  Rh2+ {[%clk 0:00:07]} 56. Kg1 {[%clk 0:00:02]}  g3 {[%clk 0:00:07]} 57. Ra5 {[%clk 0:00:01]}  h3 {[%clk 0:00:07]} 58. Ra1 {[%clk 0:00:00]}  Rf2 {[%clk 0:00:07]} 0-1


[Site "https://www.chess.com"]

[Event "Titled Tuesday Blitz June 20 Late 2023"]
[White "Mortazavi, Ali"]
[Black "Tobares, Leandro"]
[WhiteFideId "401323"]
[BlackFideId "106402"]
[WhiteElo "2339"]
[BlackElo "2292"]
[Result "0-1"]
[Round "4"]
[TimeControl "180+2"]
[Date "2023.06.20"]
[WhiteClock "0:00:27"]
[BlackClock "0:00:22"]
[Board "79"]

1. Nf3 {[%clk 0:02:59]}  Nf6 {[%clk 0:02:59]} 2. g3 {[%clk 0:02:59]}  d6 {[%clk 0:02:57]} 3. Bg2 {[%clk 0:03:00]}  e5 {[%clk 0:02:57]} 4. d3 {[%clk 0:03:00]}  Be7 {[%clk 0:02:57]} 5. O-O {[%clk 0:03:00]}  O-O {[%clk 0:02:57]} 6. e4 {[%clk 0:02:56]}  Bg4 {[%clk 0:02:45]} 7. h3 {[%clk 0:02:56]}  Be6 {[%clk 0:02:43]} 8. Nc3 {[%clk 0:02:55]}  h6 {[%clk 0:02:41]} 9. d4 {[%clk 0:02:54]}  Qd7 {[%clk 0:02:28]} 10. Kh2 {[%clk 0:02:53]}  exd4 {[%clk 0:02:27]} 11. Nxd4 {[%clk 0:02:54]}  Nc6 {[%clk 0:02:27]} 12. Nxe6 {[%clk 0:02:54]}  fxe6 {[%clk 0:02:22]} 13. f4 {[%clk 0:02:54]}  Rad8 {[%clk 0:02:13]} 14. Be3 {[%clk 0:02:39]}  d5 {[%clk 0:02:09]} 15. e5 {[%clk 0:02:39]}  d4 {[%clk 0:02:03]} 16. Bxc6 {[%clk 0:02:23]}  bxc6 {[%clk 0:01:59]} 17. exf6 {[%clk 0:02:14]}  Bxf6 {[%clk 0:01:58]} 18. Bxd4 {[%clk 0:02:04]}  Qxd4 {[%clk 0:01:55]} 19. Qf3 {[%clk 0:01:59]}  Qb4 {[%clk 0:01:46]} 20. Qxc6 {[%clk 0:01:48]}  Rd2+ {[%clk 0:01:35]} 21. Kh1 {[%clk 0:01:49]}  Rxc2 {[%clk 0:01:10]} 22. Qxe6+ {[%clk 0:01:48]}  Kh8 {[%clk 0:01:09]} 23. Qb3 {[%clk 0:01:34]}  Rxb2 {[%clk 0:00:57]} 24. Qxb4 {[%clk 0:01:34]}  Rxb4 {[%clk 0:00:57]} 25. Rac1 {[%clk 0:01:33]}  Rd8 {[%clk 0:00:53]} 26. Rc2 {[%clk 0:01:22]}  Rc4 {[%clk 0:00:51]} 27. Rfc1 {[%clk 0:01:16]}  Rd3 {[%clk 0:00:49]} 28. Ne2 {[%clk 0:01:16]}  Re4 {[%clk 0:00:45]} 29. Kg2 {[%clk 0:01:11]}  c5 {[%clk 0:00:43]} 30. Kf2 {[%clk 0:01:01]}  Bd4+ {[%clk 0:00:39]} 31. Nxd4 {[%clk 0:01:01]}  cxd4 {[%clk 0:00:39]} 32. Rg1 {[%clk 0:00:30]}  Ree3 {[%clk 0:00:37]} 33. Rg2 {[%clk 0:00:31]}  Rf3+ {[%clk 0:00:36]} 34. Kg1 {[%clk 0:00:31]}  Rd1+ {[%clk 0:00:34]} 35. Kh2 {[%clk 0:00:31]}  Rff1 {[%clk 0:00:27]} 36. g4 {[%clk 0:00:31]}  Rh1+ {[%clk 0:00:25]} 37. Kg3 {[%clk 0:00:31]}  Rd3+ {[%clk 0:00:25]} 38. Kf2 {[%clk 0:00:30]}  Rhxh3 {[%clk 0:00:24]} 39. Rd2 {[%clk 0:00:27]}  Rxd2+ {[%clk 0:00:22]} 0-1


[Site "https://www.chess.com"]